Cogmind - Beta 15 @@@ ROGUE MODE // 2025.10.20 @ 21:51:23 Player: LameThyst Result: Destroyed by P-60 Hacker with Shock Rifle Performance ------------- Evolutions (4) 2000 Regions Visited (7) 1400 Robots Destroyed (102) 510 Value Destroyed (3059) 3059 Prototype IDs (8) 160 Alien Tech Used (0) 0 Bonus (108) 108 TOTAL SCORE: 7237 Bonus ------- High Alert Combat Kills 75 Follower Combat Kills 33 Cogmind --------- Core Integrity 0/850 Matter 143/300 Energy 100/100 System Corruption 17% Temperature Cool (0) Movement Flying (1080) Ox13 Location -6/Factory Parts ------- > --- POWER (1) -------- (None) > --- PROPULSION (5) --- Xenon Bombardment Thruster > --- UTILITY (5) ------ Huge Storage Unit Machine Analyzer Enhanced Optical Array Improved Signal Interpreter > --- WEAPON (4) ------- (None) > --- INVENTORY (25) --- Enhanced Nuclear Core Flying Fortress v7 Large Storage Unit Improved Sensor Array Makeshift Cloaking Device Heavy Assault Rifle Improved Light Cannon Peak State ------------ > --- POWER ------------ Makeshift Power Source > --- PROPULSION ------- Flying Fortress v7 > --- UTILITY ---------- Medium Storage Unit Structural Scanner Improved Sensor Array Advanced ECM Suite > --- WEAPON ----------- Heavy EM Shotgun Minigun Enhanced Autogun > --- INVENTORY -------- Improved Ion Engine Nuclear Core Improved Signal Interpreter Makeshift Cloaking Device Hardened Medium Armor Plating Particle Gun Heavy Assault Rifle Improved Light Cannon Rocket Launcher Makeshift Axe [Rating: 58] Favorites ----------- Power Ion Engine Engine Ion Engine Power Core Nuclear Core Propulsion Light Treads Treads Light Treads Wheel Compact Wheel Flight Unit Flying Fortress v7 Utility Huge Storage Unit Device Seismic Detector Storage Huge Storage Unit Processor Improved Signal Interpreter Hackware Improved Hacking Suite Protection Hardened Medium Armor Plating Weapon Makeshift Axe Energy Gun Particle Gun Energy Cannon Beam Cannon Ballistic Gun Minigun Ballistic Cannon Improved Light Cannon Launcher Proton Missile Launcher Special Weapon Mining Laser Impact Weapon Great Maul Slashing Weapon Makeshift Axe Piercing Weapon Spear Build | -11 -10 -10 -10 -9 -8 -7 -6 ------- Run | Yrd Mat Min Exi Min Mat Fac Fac Slots Evolved 8 | . . . . . 4 2 2 Power . | . . . . . . . . Propulsion 3 | . . . . . 2 1 . Utility 3 | . . . . . 1 1 1 Weapon 2 | . . . . . 1 . 1 Parts Attached 86 | 8 12 4 2 2 18 25 15 Power 9 | 1 2 . . . 2 2 2 Engine 7 | 1 2 . . . 1 2 1 Core 2 | . . . . . 1 . 1 Reactor . | . . . . . . . . Propulsion 15 | 3 3 . . 1 1 5 2 Treads 6 | 1 2 . . 1 . 1 1 Leg . | . . . . . . . . Wheel 7 | 2 1 . . . . 4 . Hover . | . . . . . . . . Flight 2 | . . . . . 1 . 1 Utility 29 | 2 1 1 1 . 7 11 6 Device 15 | 1 . 1 1 . 5 6 1 Storage 5 | 1 1 . . . 1 1 1 Processor 5 | . . . . . . 2 3 Hackware 1 | . . . . . . . 1 Protection 3 | . . . . . 1 2 . Artifact . | . . . . . . . . Weapon 33 | 2 6 3 1 1 8 7 5 Energy Gun 9 | 1 2 2 . . 2 . 2 Energy Cannon 1 | . 1 . . . . . . Ballistic Gun 10 | 1 . . . 1 5 3 . Ballistic Cannon 2 | . 1 1 . . . . . Launcher 7 | . 1 . . . 1 3 2 Special Weapon 1 | . 1 . . . . . . Impact Weapon 1 | . . . . . . . 1 Slashing Weapon 1 | . . . 1 . . . . Piercing Weapon 1 | . . . . . . 1 . Special Melee Weapon . | . . . . . . . . Unidentified Prototypes 8 | . . 1 . . 4 2 1 Corrupted Parts 1 | . . . . . 1 . . System Corruption 3 | . . . . . 3 . . Parts Lost 31 | . 1 . . . 1 11 18 Power 6 | . 1 . . . . 1 4 Propulsion 6 | . . . . . . 1 5 Utility 7 | . . . . . 1 4 2 Weapon 12 | . . . . . . 5 7 Highest Loss Streak 8 | . 1 . . . 1 5 8 To Critical Strikes . | . . . . . . . . Average Backups 14 | 5 14 21 22 21 10 10 11 Power 1 | . . . 1 1 1 1 2 Propulsion 2 | 2 2 4 4 5 . 1 2 Utility 4 | . 5 7 8 8 3 2 2 Weapon 5 | 1 5 8 7 7 5 4 4 Tool/Special . | . . . . . . . . Unused Backups 27 | 1 5 2 3 3 8 1 4 Power 4 | . 1 . . . 1 1 1 Propulsion 2 | . . . . . 2 . . Utility 11 | 1 1 . 1 2 4 . 2 Weapon 8 | . 2 2 1 1 1 . 1 Tool/Special 2 | . 1 . 1 . . . . Average Slot Usage (%) 84 | . 100 100 95 100 71 72 67 Engine 10 | . 14 14 14 14 8 5 4 Treads 8 | . 14 14 14 14 . 3 3 Wheel 10 | . 14 14 14 14 . 9 9 Flight 1 | . . . . . 8 1 . Device 11 | . 14 14 14 14 15 11 . Storage 10 | . 14 14 14 14 9 7 6 Processor 4 | . . . . . . 5 21 Energy Gun 5 | . 13 14 3 . 6 2 2 Ballistic Gun 6 | . 7 . . 2 16 9 2 Ballistic Cannon 4 | . 6 13 11 11 . . . Launcher 1 | . . . . . . 3 4 Slashing Weapon 3 | . . . 8 13 4 4 . Peak Build Rating 58 | 8 11 19 17 17 55 58 58 Average Rating 29 | 5 9 11 15 16 50 46 45 On Entrance 20 | . 7 11 11 17 17 54 47 Naked Turns . | . . . . . . . . Heaviest Build 112 | 12 93 93 93 93 92 53 112 Greatest Support 66 | 20 20 16 16 16 50 66 66 Greatest Overweight (x) 37 | 1 5 5 5 5 8 9 37 Average Overweight (x) 2 | . 4 5 5 5 . 1 2 Largest Inventory Capacity 25 | 8 25 25 25 25 25 15 25 Average Capacity 19 | 7 22 25 25 25 10 13 22 Most Carried 25 | 8 22 23 25 25 25 15 18 Average Carried 16 | 5 14 21 24 24 10 12 14 Final Capacity 25 | 8 25 25 25 25 10 15 25 Final Carried 25 | 8 20 22 25 24 10 15 10 Class Distribution -------------------- 70% | Mutant 7% | Skirmisher 6% | Assassin 4% | Scavenger-Mutant 4% | Infiltrator-Skirmisher Dominant Class ---------------- Mutant | -10/Materials Mutant | -10/Mines Mutant | -10/Exiles Mutant | -9/Mines Scavenger-Mutant | -8/Materials Mutant | -7/Factory Mutant | -6/Factory Resources | -11 -10 -10 -10 -9 -8 -7 -6 ----------- Run | Yrd Mat Min Exi Min Mat Fac Fac Matter Collected 3165 | 288 529 197 160 54 1012 700 225 Remotely . | . . . . . . . . Salvage Created 3797 | 123 402 125 292 53 1109 1246 447 Parts 203 | 8 36 13 5 2 67 65 7 Haulers Intercepted 5 | . 2 . . . 2 1 . Recyclers Shooed 3 | . . 1 . . 1 1 . Parts Field Recycled . | . . . . . . . . Retrieved Matter . | . . . . . . . . Parts Self-Destructed . | . . . . . . . . Prevented . | . . . . . . . . Kills | -11 -10 -10 -10 -9 -8 -7 -6 ------- Run | Yrd Mat Min Exi Min Mat Fac Fac Combat Hostiles Destroyed 76 | . 13 7 . 1 24 23 8 Melee 4 | . . . . . . 2 2 Guns 38 | . 6 2 . . 22 8 . Cannons 2 | . 1 . . 1 . . . AOE 29 | . 6 5 . . 2 13 3 Classes Destroyed 15 | 2 5 . . 1 2 5 . Worker 3 | . . . . . 2 1 . Builder 4 | . 3 . . . . 1 . Tunneler 3 | 2 1 . . . . . . Hauler 5 | . 2 . . . 2 1 . Recycler 3 | 1 . . . . . 2 . Mechanic 1 | . . . . . . 1 . Operator 1 | . . . . . . 1 . Watcher 6 | . 3 . . . 2 1 . Swarmer 27 | . 9 5 . . 10 3 . Grunt 33 | . 4 2 . . 9 13 5 Brawler 2 | . . . . . . 1 1 Duelist 1 | . . . . . 1 . . Sentry 9 | . . . . 1 4 2 2 Hunter 1 | . . . . . . 1 . Programmer 3 | . . . . . . 3 . Best Kill Streak 15 | 2 4 3 . 1 15 7 2 Combat Bots Only 12 | . 3 3 . 1 12 6 2 Max Kills in Single Turn 3 | 1 3 3 . 1 2 3 1 Gunslinging 1 | . 1 . . . 1 . . Exploded 3 | . 2 3 . . 2 2 1 Melee 1 | . . . . . . 1 1 Uniques/NPCs Destroyed . | . . . . . . . . Combat | -11 -10 -10 -10 -9 -8 -7 -6 -------- Run | Yrd Mat Min Exi Min Mat Fac Fac Hostile Shots Fired 625 | . 47 9 . 4 72 229 264 Missed 205 | . 17 3 . . 30 78 77 Hits 420 | . 30 6 . 4 42 151 187 Melee 9 | . . . . . 1 8 . Projectile 411 | . 30 6 . 4 41 143 187 AOE 1 | . . . . . . . 1 Critical Strikes 19 | . 1 . . 1 . 5 12 Part Disruptions 1 | . . . . . . 1 . Damage Taken 6630 | . 324 49 . 55 880 2426 2896 Core 1729 | . 43 15 . 27 406 374 864 Absorbed by Shields . | . . . . . . . . Regen/Repaired (Parts) 197 | . 21 . . . 176 . . Core Remaining (%) 59 | 100 . . . 66 26 46 . Volleys Fired 192 | 8 56 6 2 1 64 51 4 Largest 3 | 2 2 2 2 2 3 3 3 Hottest 155 | 70 130 98 98 78 135 76 155 Shots Fired 418 | 16 102 12 4 2 170 100 12 Gun 346 | 16 76 7 2 1 170 70 4 Cannon 20 | . 14 3 2 1 . . . Launcher 46 | . 6 2 . . . 30 8 Special 6 | . 6 . . . . . . Kinetic 247 | 8 48 3 2 1 115 70 . Thermal 79 | 8 48 1 2 . 16 . 4 Explosive 22 | . 6 2 . . . 10 4 Electromagnetic 70 | . . 6 . 1 39 20 4 Robot Hit Streak 12 | 5 7 10 11 3 10 12 5 Robot Miss Streak 7 | 2 4 1 1 . 7 3 1 Penetration Max 1 | . . . . . . 1 . Secondary Targets 7 | . 2 . . . 4 1 . Max Gunslinging Chain 1 | . 1 . . . 1 1 . Shots Hit Robots 299 | 12 47 8 26 1 107 80 18 Core Hits 181 | 6 32 12 10 1 56 53 11 Critical Kills 3 | . . . . . 1 . 2 Critical Parts Destroyed 1 | . . . . . . . 1 Critical Strikes 10 | . 2 . 1 . 2 2 3 Burn 2 | . 2 . . . . . . Destroy 1 | . . . . . 1 . . Smash 3 | . . . . . . . 3 Sever 4 | . . . 1 . 1 2 . Melee Attacks 140 | . . . 56 . 18 37 29 Impact 19 | . . . . . . . 19 Slashing 111 | . . . 56 . 18 36 1 Piercing 10 | . . . . . . 1 9 Sneak Attacks 4 | . . . . . 2 2 . Combat Hostiles . | . . . . . . . . Follow-up Attacks . | . . . . . . . . Damage Inflicted 10282 | 125 1093 242 2052 22 2153 3480 1115 Guns 3370 | 125 468 61 34 . 1772 885 25 Cannons 220 | . 140 18 40 22 . . . Explosions 3142 | . 485 163 . . 118 1862 514 Melee 3526 | . . . 1978 . 263 710 575 Ramming 24 | . . . . . . 23 1 Kinetic 2421 | 49 279 18 40 22 1128 885 . Thermal 1204 | 76 413 . 34 . 287 369 25 Explosive 1748 | . 401 163 . . . 858 326 Electromagnetic 1359 | . . 61 . . 475 635 188 Impact 518 | . . . . . . . 518 Slashing 2897 | . . . 1978 . 263 656 . Piercing 111 | . . . . . . 54 57 Highest Corruption 17 | . 5 5 5 5 3 5 17 Average Corruption 4 | . 3 5 5 5 3 4 4 Corruption Purged 2 | . . . . . . 2 . Corruption Blocked . | . . . . . . . . Effects 149 | . 38 9 38 6 13 31 14 Message Errors 37 | . 8 5 10 2 2 5 5 Matter Fused 34 | . 13 1 9 . 2 4 5 Heat Flow Errors 16 | . 4 1 4 2 2 2 1 Energy Discharges 21 | . 1 1 5 . 1 11 2 Parts Rejected 3 | . . . . . . 2 1 Parts Fused 1 | . . . . . 1 . . Data Loss (minor) 17 | . 8 . 2 2 3 2 . Data Loss (major) 8 | . . 1 7 . . . . Misfires 3 | . 2 . . . 1 . . Alerts 3 | . . . 1 . . 2 . Weapon Failures 6 | . 2 . . . 1 3 . Overload Shots . | . . . . . . . . Overflow Damage 676 | . 83 . 344 . 5 130 114 Projectiles . | . . . . . . . . Explosions 190 | . 83 . . . . 103 4 Melee 486 | . . . 344 . 5 27 110 Knockbacks 3 | . . . 1 . . 1 1 Impact 2 | . . . . . . 1 1 Kinetic 1 | . . . 1 . . . . Secondary . | . . . . . . . . Self-Inflicted Damage 426 | . 40 . . . 37 345 4 Shots 14 | . 1 . . . 1 11 1 Rammed 3 | . . . . . . 2 1 Targets Rammed 3 | . . . . . . 2 1 Kicked . | . . . . . . . . Crushed . | . . . . . . . . Highest Temperature 699 | 40 241 268 255 229 699 212 177 Average Temperature 122 | 22 53 73 92 80 211 40 74 Received Heat Transfer 1653 | . 108 . . 36 162 636 711 Effects 44 | . . . . . 44 . . Shutdowns 10 | . . . . . 10 . . Energy Bleed 4 | . . . . . 4 . . Interference 3 | . . . . . 3 . . Matter Decay 6 | . . . . . 6 . . Short Circuit 3 | . . . . . 3 . . Damage (minor) 4 | . . . . . 4 . . Damage (major) 10 | . . . . . 10 . . Damage (core) 4 | . . . . . 4 . . Siege Activations . | . . . . . . . . Martial Activations . | . . . . . . . . Shielding Activations . | . . . . . . . . Robots Disrupted . | . . . . . . . . Combat Hostiles . | . . . . . . . . Robots Corrupted 3 | . . . . . . . 3 Combat Hostiles 3 | . . . . . . . 3 Parts Fried 1 | . . . . . . . 1 Impact Corruptions 3 | . . . . . . . 3 Robots Melted . | . . . . . . . . Combat Hostiles . | . . . . . . . . Parts Melted 2 | . 2 . . . . . . Heat Transferred 2363 | 222 1123 . 74 . 607 300 37 Parts Sabotaged . | . . . . . . . . Parts Stolen . | . . . . . . . . Parts Stripped . | . . . . . . . . Power Chain Reactions 4 | . . . . . 2 2 . Alert | -11 -10 -10 -10 -9 -8 -7 -6 ------- Run | Yrd Mat Min Exi Min Mat Fac Fac Maximum Alert Level 2 | . . . . . 2 2 1 Low Security (%) 82 | 100 100 100 . 100 75 65 81 Level 1 6 | . . . . . 11 6 18 Level 2 10 | . . . . . 13 27 . Level 3 . | . . . . . . . . Level 4 . | . . . . . . . . Level 5 . | . . . . . . . . High Security . | . . . . . . . . Max Security . | . . . . . . . . Peak Influence 500 | 5 144 177 . 52 434 500 238 Initial 233 | . . 7 . . 4 175 233 Average 107 | 1 44 48 . 11 111 169 147 Influence Increases 2748 | 15 520 207 5 52 729 796 424 Destroy 0b10 Robot/C 1540 | . 260 140 . 40 480 460 160 Destroy 0b10 Robot/NC 135 | 15 45 . 5 . 30 40 . Destroy Leader 332 | . 60 30 . . 98 114 30 Allied During Kill 24 | . . . . 12 12 . . Successful Hack 24 | . 19 . . . 5 . . Select Force Hacks 30 | . 30 . . . . . . Disable Machine 255 | . 60 30 . . 45 90 30 Destroy Structure 183 | . 31 7 . . 14 92 39 Lose Combat Pursuer 225 | . 15 . . . 45 . 165 Influence Decreases 2675 | 15 500 80 152 40 355 704 829 Entered New Map 624 | . . 13 147 . 8 211 245 Time Decay 1686 | 15 490 67 5 40 262 403 404 Lost Part 290 | . 10 . . . 10 90 180 Lost Ally 75 | . . . . . 75 . . Squads Dispatched 16 | . 2 . . . 3 9 2 Investigation 2 | . 1 . . . 1 . . Extermination 6 | . . . . . . 4 2 Reinforcement 8 | . 1 . . . 2 5 . Assault . | . . . . . . . . Garrison . | . . . . . . . . Intercept . | . . . . . . . . Searches Triggered . | . . . . . . . . Construction Impeded 1 | . . . . . . 1 . Haulers Reinforced 2 | . . . . . . 2 . Active Scanning Responses . | . . . . . . . . Cargo Convoy Interrupts . | . . . . . . . . Stealth | -11 -10 -10 -10 -9 -8 -7 -6 --------- Run | Yrd Mat Min Exi Min Mat Fac Fac Distress Signals 8 | . 2 . . . 3 2 1 Communications Jammed . | . . . . . . . . Distress Signals . | . . . . . . . . Times Spotted 115 | . 19 8 . 2 35 30 21 Peak Tracking Total 6 | . 3 3 . 2 4 4 6 Tactical Retreats 10 | . 1 . . . 3 . 6 Traps | -11 -10 -10 -10 -9 -8 -7 -6 ------- Run | Yrd Mat Min Exi Min Mat Fac Fac Traps Triggered 4 | . 3 . . . . . 1 Indirectly . | . . . . . . . . Trap Hack Attempts . | . . . . . . . . Triggered . | . . . . . . . . Disarmed . | . . . . . . . . Reprogrammed . | . . . . . . . . Reused . | . . . . . . . . Traps Extracted . | . . . . . . . . Installed . | . . . . . . . . Triggered . | . . . . . . . . Machines | -11 -10 -10 -10 -9 -8 -7 -6 ---------- Run | Yrd Mat Min Exi Min Mat Fac Fac Machines Disabled 19 | . 5 2 . 1 3 6 2 Max in Single Turn 3 | . 3 2 . . 1 2 1 Garrison Access 1 | . . . . . 1 . . Machines Repaired . | . . . . . . . . Machines Dismantled . | . . . . . . . . Machines Sabotaged . | . . . . . . . . Overloaded Fab Kills . | . . . . . . . . Hacking | -11 -10 -10 -10 -9 -8 -7 -6 --------- Run | Yrd Mat Min Exi Min Mat Fac Fac Machines Accessed 17 | . 8 . 1 . 7 1 . Terminals 11 | . 6 . . . 4 1 . Fabricators . | . . . . . . . . Repair Stations 3 | . 1 . . . 2 . . Recycling Units 1 | . 1 . . . . . . Scanalyzers . | . . . . . . . . Garrison Access 1 | . . . . . 1 . . Total Hacks 40 | . 22 . 1 . 16 1 . Successful 18 | . 12 . 1 . 5 . . Failed 22 | . 10 . . . 11 1 . Catastrophic 5 | . 2 . . . 2 1 . Database Lockouts . | . . . . . . . . Manual 26 | . 16 . 1 . 8 1 . Terminals 28 | . 18 . . . 9 1 . Fabricators . | . . . . . . . . Repair Stations 9 | . 3 . . . 6 . . Recycling Units 1 | . 1 . . . . . . Scanalyzers . | . . . . . . . . Garrison Access 1 | . . . . . 1 . . Terminal Hacks 4 | . 3 . 1 . . . . Record 1 | . . . 1 . . . . Locate Traps 2 | . 2 . . . . . . Zone Layout 1 | . 1 . . . . . . Fabricator Hacks . | . . . . . . . . Repair Station Hacks 5 | . 2 . . . 3 . . Scan Component 3 | . 1 . . . 2 . . Repair 2 | . 1 . . . 1 . . Recycling Unit Hacks . | . . . . . . . . Scanalyzer . | . . . . . . . . Garrison Access Hacks 1 | . . . . . 1 . . Seal Access 1 | . . . . . 1 . . Unauthorized Hacks 8 | . 7 . . . 1 . . Terminals 7 | . 6 . . . 1 . . Botnet 2 | . 1 . . . 1 . . Skim 5 | . 5 . . . . . . Fabricators . | . . . . . . . . Repair Stations . | . . . . . . . . Recycling Units 1 | . 1 . . . . . . Tunnel 1 | . 1 . . . . . . Scanalyzers . | . . . . . . . . Garrison Access . | . . . . . . . . Data Cores Recovered . | . . . . . . . . Used . | . . . . . . . . Hacking Detections 13 | . 7 . . . 5 1 . Full Trace Events 2 | . 1 . . . 1 . . Feedback Events 1 | . 1 . . . . . . Corruption 1 | . 1 . . . . . . Feedback Blocked . | . . . . . . . . Robot Schematics Acquired . | . . . . . . . . Robots Built . | . . . . . . . . Authchips . | . . . . . . . . Time . | . . . . . . . . Total Robot Build Rating . | . . . . . . . . Part Schematics Acquired . | . . . . . . . . Parts Built . | . . . . . . . . Authchips . | . . . . . . . . Time . | . . . . . . . . Total Part Build Rating . | . . . . . . . . Parts Repaired 2 | . 1 . . . 1 . . Time 64 | . 26 . . . 38 . . Parts Recycled . | . . . . . . . . Recycled Matter . | . . . . . . . . Retrieved Matter . | . . . . . . . . Retrieved Components . | . . . . . . . . Parts Scanalyzed . | . . . . . . . . Part Schematics Acquired . | . . . . . . . . Parts Damaged . | . . . . . . . . Bothacking | -11 -10 -10 -10 -9 -8 -7 -6 ------------ Run | Yrd Mat Min Exi Min Mat Fac Fac Used RIF Installer . | . . . . . . . . Robots Hacked . | . . . . . . . . Non-combat . | . . . . . . . . Combat . | . . . . . . . . Robot Hacks Applied . | . . . . . . . . Relay Couplers Released . | . . . . . . . . Fabnet Peak Effective % . | . . . . . . . . Robots Rewired 3 | . . . 3 . . . . Allies Hacked . | . . . . . . . . Hacks Repelled . | . . . . . . . . Allies | -11 -10 -10 -10 -9 -8 -7 -6 -------- Run | Yrd Mat Min Exi Min Mat Fac Fac Total Allies 5 | . . . 3 2 . . . Largest Group 5 | . . . 3 5 5 . . Highest-Rated Group 80 | . . . 37 80 80 . . Highest-Rated Ally 31 | . . . 21 31 31 . . Total Orders . | . . . . . . . . Ally Attacks 11 | . . . . 1 10 . . Total Damage 124 | . . . . 31 93 . . Kills 1 | . . . . 1 . . . Allies Corrupted . | . . . . . . . . Allies Melted . | . . . . . . . . Intel | -11 -10 -10 -10 -9 -8 -7 -6 ------- Run | Yrd Mat Min Exi Min Mat Fac Fac Active Infowar (turns) 7502 | 36 1804 293 1726 251 872 1556 964 Optics 640 | . . . . . . . 640 Sensors 1219 | . . . . . 160 1059 . Structural 3195 | . . . 1231 . 646 1318 . Seismic 3589 | 36 1804 293 495 251 710 . . Machine Analysis 1202 | . . . . . . 238 964 ECM 19 | . . . . . . 19 . Robot Analysis Total . | . . . . . . . . Derelict Logs Recovered 1 | . . . . 1 . . . Drone Launches . | . . . . . . . . Drone Recoveries . | . . . . . . . . Exploration | -11 -10 -10 -10 -9 -8 -7 -6 ------------- Run | Yrd Mat Min Exi Min Mat Fac Fac Turns Passed 8152 | 135 1804 295 1726 251 960 2017 964 Spaces Moved 4356 | 100 897 142 885 117 842 853 520 Core 171 | 12 . . . . 31 115 13 Treads 127 | 1 12 . . . . 105 9 Legs . | . . . . . . . . Wheels 3249 | 87 885 142 885 117 5 633 495 Hover . | . . . . . . . . Flight 809 | . . . . . 806 . 3 Fastest Speed 50 | 50 95 175 175 175 50 93 93 Average Speed 148 | 91 163 175 175 175 65 181 158 Slowest Speed 1900 | 160 480 175 175 175 450 500 1900 Overloaded Moves . | . . . . . . . . Propulsion Burnouts . | . . . . . . . . Robots Hopped 1 | . . . . . 1 . . Potential Cave-ins . | . . . . . . . . Cave-ins Triggered . | . . . . . . . . Exploration Rate (%) 45 | 5 99 31 99 26 61 20 20 Regions Visited 7 Branch Regions 3 Pre-discovered Areas 4 | . 2 . 1 1 . . . Known Exits Taken 2 | . . . . . 1 1 . Unknown Exits Taken 5 | 1 1 1 1 1 . . . Scrap Searched 1 | . . 1 . . . . . Spaces Dug 40 | . 11 . 3 . 5 13 8 Terrain Destroyed 229 | . 33 7 3 . 11 125 50 Melee 29 | . . . 3 . 5 13 8 Projectile 8 | . 7 1 . . . . . AOE 192 | . 26 6 . . 6 112 42 Terrain Rammed . | . . . . . . . . Walls Destroyed . | . . . . . . . . Machines Disabled . | . . . . . . . . Actions | -11 -10 -10 -10 -9 -8 -7 -6 --------- Run | Yrd Mat Min Exi Min Mat Fac Fac Total 5495 | 125 1127 174 1004 163 1108 1201 593 Wait 436 | . 106 5 . 31 100 190 4 Move 4347 | 99 896 141 884 116 839 852 520 Hop 1 | . . . . . 1 . . Pick Up 88 | 9 25 7 4 4 20 17 2 Fast Attach 41 | 7 1 . . . 10 13 10 Attach 30 | . 2 . 2 . 7 11 8 Detach 9 | . 1 . 2 . 1 2 3 Swap 77 | 1 25 10 4 5 21 10 1 Drop 77 | 1 15 5 4 6 27 16 3 Fire 192 | 8 56 6 2 1 64 51 4 Melee 140 | . . . 56 . 18 37 29 Ram 3 | . . . . . . 2 1 Kick . | . . . . . . . . Crush . | . . . . . . . . Escape Stasis 8 | . . . . . . . 8 Rewire 46 | . . . 46 . . . . Trap . | . . . . . . . . Miscellaneous . | . . . . . . . . Route ------- -11/Scrapyard -10/Materials (discovered 5 exits: *Mat x3 / [*Min] / [*Sub]) -10/Mines (discovered 3 exits: *Mat x2 / *Exi) -10/Exiles (discovered 2 exits: [*Min x2]) -9/Mines -8/Materials (discovered 2 exits: *Fac x2) -7/Factory -6/Factory (discovered 1 exit: [*Low]) History --------- Turn | Location | Event 8 | -11/Scrapyard | Discovered new exit (range 16) 136 | -11/Scrapyard | Entered Materials 233 | -10/Materials | Discovered new exit (range 16) 313 | -10/Materials | Repaired Com. Wheel 314 | -10/Materials | Build established: Mutant 811 | -10/Materials | Discovered new exit (range 16) 1061 | -10/Materials | Identified exit to Materials 1063 | -10/Materials | Discovered new exit (range 12) 1118 | -10/Materials | Learned Storage garrison access intel 1167 | -10/Materials | Learned location of Mines (-10) 1206 | -10/Materials | Learned Storage trap positions 1254 | -10/Materials | Learned 4 Subcaves zone layouts 1284 | -10/Materials | Learned location of 1 exit from Recycling 1323 | -10/Materials | Learned location of 2 exits from Materials 1370 | -10/Materials | Learned Storage emergency access door positions 1940 | -10/Materials | Entered Mines 1974 | -10/Mines | Met a Derelict bent on vengeance 2007 | -10/Mines | Discovered exit to Materials (range 7) 2063 | -10/Mines | Found a damaged Exp. Sensor Array with a note attached 2067 | -10/Mines | Found Prototype Device 2068 | -10/Mines | Identified Exp. Sensor Array 2200 | -10/Mines | Discovered exit to Materials (range 15) 2228 | -10/Mines | Deemed a non-threat by the Exiles lab entrance 2228 | -10/Mines | Discovered new exit (range 5) 2235 | -10/Mines | Entered Exiles 2235 | -10/Exiles | Found Exiles lab destroyed 2266 | -10/Exiles | Discovered new exit (range 15) 2499 | -10/Exiles | Opened EX-Vault 2507 | -10/Exiles | Found Prototype Flight Unit 3268 | -10/Exiles | Learned location of Zion (-7) 3365 | -10/Exiles | Discovered new exit (range 14) 3961 | -10/Exiles | Entered Mines 3961 | -9/Mines | Accompanied by 3 allies 4110 | -9/Mines | Discovered new exit (range 7) 4212 | -9/Mines | Entered Materials 4212 | -8/Materials | Accompanied by 5 allies 4212 | -8/Materials | Evolved 4 slots: Propulsion x2, Utility x1, Weapon x1 4213 | -8/Materials | Identified exit to Factory 4217 | -8/Materials | Led the pair of lost Derelicts to an unsafe place 4223 | -8/Materials | Identified Flying Fortress v7 4351 | -8/Materials | Lost 5 allies 4603 | -8/Materials | Repaired Hrd. Medium Armor Plating? 4967 | -8/Materials | Core integrity fell below 50% 5043 | -8/Materials | Destroyed 12 combat bots 5172 | -8/Materials | Entered Factory 5172 | -7/Factory | Evolved 2 slots: Propulsion x1, Utility x1 5575 | -7/Factory | Build established: Infiltrator-Skirmisher 6328 | -7/Factory | Build established: Assassin 6529 | -7/Factory | Lost 5 parts (1n2u2w) 6789 | -7/Factory | Build established: Mutant 6982 | -7/Factory | Core integrity fell below 50% 7034 | -7/Factory | Discovered new exit (range 15) 7047 | -7/Factory | Identified exit to Factory 7189 | -7/Factory | Entered another Factory area 7189 | -6/Factory | Evolved 2 slots: Utility x1, Weapon x1 7531 | -6/Factory | Spotted B-75 Beast 7554 | -6/Factory | Discovered new exit (range 21) 7689 | -6/Factory | Lost 3 parts (1p1n1w) 7959 | -6/Factory | Lost 8 parts (1p3n1u3w) 8049 | -6/Factory | Core integrity fell below 50% 8058 | -6/Factory | System corruption reached 10% 8104 | -6/Factory | Core integrity fell below 20% 8153 | -6/Factory | Destroyed by P-60 Hacker with Shock Rifle Last Messages --------------- 07962_ Acquired Imp. Hacking Suite. 07965_ System corrupted: Matter fused (-9). 08019_ Acquired Fission Core. 08030_ Terminal disabled. 08050_ System corrupted: Energy discharge (-124). 08053_ Acquired 56 matter. 08066_ System corrupted: Matter fused (-7). 08078_ Great Maul destroyed. 08081_ Fission Core destroyed. 08082_ System corrupted: Energy discharge (-32). 08098_ WUOY8T#XQD,#DZTEU|X4: 08114_ 4SA5| 8X8PJN8 ILX037WO3GC>P& 08118_ Imp. Hacking Suite destroyed. 08122_ Imp. Deuterium Engine destroyed. 08125_ Spear destroyed. 08131_ System corrupted: Matter fused (-10). 08141_ Mak. Axe destroyed. 08147_ LH4|>O0QBELJ>QTYGO#LPN/ 08152_ Slammed into P-60 Hacker. Map ----- +----------------------------------------------------+ | ?????########## | | ?????# ######## # # | | ?????# ######## #????? ### | | ????## #???# #???# #?? | | ????# " #???# #???# !! #?? | | ?#### #???# #???# !! #?? | | ?# ##???# #???# #?? | | ?# "" # #????# #???# """ #?? | | ?# "" %* ? #????# #???# """ #?? | | ?# "" ?? ????# #???# """ #?? | | ?# """ +?? ????# #???#] #?? | | ?# """" #?? #???# #???##########?? | | ?# """" #???#???? ???????????????? | | ?# """ #???????? ???????????????? | | ?# #?????"?? ???????????????? | | ?# #?????"?? ???????????????? | | ?# #?????"?? ???????????????? | | ?#####+###?????"?? ??""""?""""????? | | ?????# #???????"?? ??""""?""""????? | | ?????# #???????"?? ??""""?""""????? | | ###### ##??????"?? ??""""?""""????? | | # # T#??????"?? ??""""?""""????? | | # ""# #??????"?????""""?""""????? | | # T"# ##????????????""""?""""????? | | # # ########### #??????????????? | | # + @ #??????????????? | | # # p ##### #??????????????? | | # ! # #????????????????????? | | #! + #????????????????????? | | # #### ##+#????????????????????? | | ######??# #???????????????????????? | | ????????# #???????????????????????? | | ????????# #???????????????????????? | | ????????# #???????????????????????? | | ???????? #???????????????????????? | | ???????? #???????????????????????? | | ???????? #???????????????????????? | | ???????? #???????????????????????? | | ???????? ????????????????????????? | | ??????? ????????????????????????? | | ??????? ????????????????????????? | | ??????? ????????????????????????? | | ??????? ????????????????????????? | | ??????? ????????????????????????? | | ??????? ????????????????????????? | | ?????? ????????????????????????? | | ???????? ????????????????????????? | | ??????????????????????????????????? | | ??????????????????????????????????? | | ??????????????????????????????????? | +----------------------------------------------------+ Best States ------------- Heat Dissipation 45 Coolant Potential 50 Energy Generation 18 Energy Capacity 310 Matter Stores 300 Matter Capacity 300 Sight Range 22 Robot Scan Range 15 Terrain Scan Density 10 ECM Strength 2 Armor Coverage 225 Evasion (%) 60 Melee Accuracy 12 Recoil Reduction 2 Offensive Hacking 12 Item Schematics ----------------- None Robot Schematics ------------------ None Fabricated ------------ Nothing Repaired ---------- Com. Wheel | 30% | -10/Materials Hrd. Medium Armor Plating | 26% | -8/Materials Alien Tech Used ----------------- None Achievements -------------- None Challenges ------------ None Game ------ Seed CannonImprovedWand Manual? 0 Play Time 01:12:57 Cumulative 134.6 hours Start 2025.10.20 @ 20:39:46 End 2025.10.20 @ 21:51:23 Sessions 1 Manual Loads 0 Difficulty Rogue Special Mode None Game No. 150 Rogue 150 Adventurer 0 Explorer 0 Win Type - Total 0 Types 0/0/0/0/0/0/0/0/0/0 Lore% 62 Gallery% 46 Achievement% 37 Wizard Run 0 Options --------- Layout 1 ASCII 0 Keyboard 0 Movement Numpad Keybinds 0 Fullscreen 2 Font 48/Smallcaps Map View 50x35 Zoom Use 0% Tactical HUD 1 Map Filters NONE Filters NONE Steam 0 RUN: 05620d76-841e-4c8b-8807-e4a5db7c00bf